[Event "***Titled Tuesday 3|2 Blitz"]
[Site "Chess.com"]
[Date "2017.02.07"]
[Round "2"]
[White "DanielNaroditsky"]
[Black "Jospem"]
[Result "1-0"]
[WhiteElo "2723"]
[BlackElo "2512"]
[TimeControl "180+2"]
[EndTime "13:29:07 PST"]
[Termination "DanielNaroditsky won by resignation"]

1. e4 {[%clk 0:03:02]} 1... c5 {[%clk 0:02:58.5]} 2. Nf3 {[%clk 0:03:00.9]} 2...
d6 {[%clk 0:02:51.8]} 3. d4 {[%clk 0:03:01.5]} 3... cxd4 {[%clk 0:02:49.4]} 4.
Nxd4 {[%clk 0:03:03.4]} 4... Nf6 {[%clk 0:02:50.3]} 5. Nc3 {[%clk 0:03:04.9]}
5... a6 {[%clk 0:02:48.4]} 6. Nb3 {[%clk 0:03:05.5]} 6... e6 {[%clk 0:01:54.4]}
7. g4 {[%clk 0:03:05.7]} 7... Be7 {[%clk 0:01:50.8]} 8. g5 {[%clk 0:03:06.1]}
8... Nfd7 {[%clk 0:01:51.7]} 9. h4 {[%clk 0:03:00.1]} 9... b5 {[%clk 0:01:51]}
10. Bg2 {[%clk 0:02:57.9]} 10... Bb7 {[%clk 0:01:52]} 11. f4 {[%clk 0:02:59.2]}
11... Nc6 {[%clk 0:01:46.7]} 12. Be3 {[%clk 0:03:00.3]} 12... Rc8 {[%clk
0:01:33]} 13. f5 {[%clk 0:03:00.5]} 13... Nde5 {[%clk 0:01:30.8]} 14. O-O {[%clk
0:03:01.7]} 14... Nc4 {[%clk 0:01:12.5]} 15. Bc1 {[%clk 0:03:02.6]} 15... N6e5
{[%clk 0:01:11.9]} 16. Ne2 {[%clk 0:02:57.1]} 16... exf5 {[%clk 0:01:11.2]} 17.
exf5 {[%clk 0:02:46.8]} 17... Bxg2 {[%clk 0:01:11.7]} 18. Kxg2 {[%clk
0:02:48.7]} 18... Qd7 {[%clk 0:00:59.5]} 19. Qd5 {[%clk 0:02:43.1]} 19... O-O
{[%clk 0:00:58]} 20. Ned4 {[%clk 0:02:15.3]} 20... Nb6 {[%clk 0:00:47.1]} 21.
Qe4 {[%clk 0:02:16.1]} 21... Rfe8 {[%clk 0:00:48.5]} 22. Bf4 {[%clk 0:01:37.3]}
22... Bf8 {[%clk 0:00:43.1]} 23. Qe1 {[%clk 0:01:17.1]} 23... Qb7+ {[%clk
0:00:38.2]} 24. Kh3 {[%clk 0:01:17.9]} 24... Nd5 {[%clk 0:00:34.9]} 25. Qg3
{[%clk 0:01:11.8]} 25... Nxf4+ {[%clk 0:00:34.4]} 26. Rxf4 {[%clk 0:01:12.7]}
26... d5 {[%clk 0:00:33.8]} 27. Re1 {[%clk 0:01:01.9]} 27... Qd7 {[%clk
0:00:33.2]} 28. Rf2 {[%clk 0:00:54.2]} 28... Nc4 {[%clk 0:00:29.9]} 29. Rfe2
{[%clk 0:00:52]} 29... Rxe2 {[%clk 0:00:29.8]} 30. Rxe2 {[%clk 0:00:53.9]} 30...
a5 {[%clk 0:00:24.2]} 31. c3 {[%clk 0:00:51.8]} 31... a4 {[%clk 0:00:24.6]} 32.
Nc1 {[%clk 0:00:53.2]} 32... Bc5 {[%clk 0:00:24.6]} 33. Qf4 {[%clk 0:00:45.5]}
33... Bxd4 {[%clk 0:00:24.6]} 34. cxd4 {[%clk 0:00:47.4]} 34... Nd6 {[%clk
0:00:25.9]} 35. Re5 {[%clk 0:00:35.6]} 35... Nc4 {[%clk 0:00:19.5]} 36. Re2
{[%clk 0:00:34.9]} 36... Nd6 {[%clk 0:00:20.6]} 37. Re5 {[%clk 0:00:36.5]} 37...
Nc4 {[%clk 0:00:18.6]} 38. Re2 {[%clk 0:00:35.1]} 38... Nd6 {[%clk 0:00:19.6]}
39. Nd3 {[%clk 0:00:36.2]} 39... Qxf5+ {[%clk 0:00:18.7]} 40. Qxf5 {[%clk
0:00:37.6]} 40... Nxf5 {[%clk 0:00:20.3]} 41. Re5 {[%clk 0:00:39.5]} 41... Nxd4
{[%clk 0:00:21.5]} 42. Rxd5 {[%clk 0:00:40.9]} 42... Ne6 {[%clk 0:00:22.3]} 43.
Rxb5 {[%clk 0:00:40.2]} 43... h6 {[%clk 0:00:23.7]} 44. gxh6 {[%clk 0:00:39.2]}
44... gxh6 {[%clk 0:00:25]} 45. Rb4 {[%clk 0:00:40.4]} 45... a3 {[%clk
0:00:23.4]} 46. bxa3 {[%clk 0:00:40.3]} 46... Rc3 {[%clk 0:00:24.1]} 47. Rb3
{[%clk 0:00:41.8]} 47... Rc2 {[%clk 0:00:24]} 48. Nb4 {[%clk 0:00:35.5]} 48...
Rc5 {[%clk 0:00:22.8]} 49. Nd3 {[%clk 0:00:27.5]} 49... Ra5 {[%clk 0:00:23.6]}
50. Rc3 {[%clk 0:00:26.7]} 50... Kg7 {[%clk 0:00:24.6]} 51. Nb2 {[%clk
0:00:25.7]} 51... Nf4+ {[%clk 0:00:22.6]} 52. Kg4 {[%clk 0:00:23.9]} 52... Nd5
{[%clk 0:00:19.2]} 53. Rd3 {[%clk 0:00:19.8]} 53... Nf6+ {[%clk 0:00:15.6]} 54.
Kf3 {[%clk 0:00:20.1]} 54... Kg6 {[%clk 0:00:16.3]} 55. Nc4 {[%clk 0:00:20.9]}
55... Ra4 {[%clk 0:00:16.7]} 56. Rd4 {[%clk 0:00:19.3]} 56... Kg7 {[%clk
0:00:16.3]} 57. Ke3 {[%clk 0:00:20.7]} 57... h5 {[%clk 0:00:17]} 58. Kd3 {[%clk
0:00:22]} 58... Ng4 {[%clk 0:00:16.4]} 59. Kc3 {[%clk 0:00:21.6]} 59... f5
{[%clk 0:00:16.6]} 60. Kb3 {[%clk 0:00:18.4]} 60... Ra7 {[%clk 0:00:17.7]} 61.
a4 {[%clk 0:00:17.5]} 61... Nf6 {[%clk 0:00:18.6]} 62. a5 {[%clk 0:00:15.3]}
62... Ne4 {[%clk 0:00:19.5]} 63. Rd5 {[%clk 0:00:16.8]} 63... Kf6 {[%clk
0:00:20.3]} 64. Kb4 {[%clk 0:00:14.4]} 64... f4 {[%clk 0:00:21.4]} 65. Kb5
{[%clk 0:00:07.7]} 65... Nc3+ {[%clk 0:00:21.6]} 66. Kb6 {[%clk 0:00:09.3]}
66... Ra8 {[%clk 0:00:19]} 67. Kb7 {[%clk 0:00:08.7]} 67... Nxd5 {[%clk
0:00:17.1]} 68. Kxa8 {[%clk 0:00:09.6]} 68... f3 {[%clk 0:00:18.4]} 69. Nd2
{[%clk 0:00:08.1]} 69... f2 {[%clk 0:00:19.4]} 70. a6 {[%clk 0:00:09.6]} 70...
Ke5 {[%clk 0:00:20.4]} 71. Kb7 {[%clk 0:00:10.9]} 71... Kd4 {[%clk 0:00:21.3]}
72. a7 {[%clk 0:00:12.4]} 72... Kd3 {[%clk 0:00:22.7]} 73. Nf1 {[%clk
0:00:13.9]} 73... Ke2 {[%clk 0:00:23.6]} 74. Nh2 {[%clk 0:00:14.8]} 1-0

[Event "***Titled Tuesday 3|2 Blitz"]
[Site "Chess.com"]
[Date "2017.02.07"]
[Round "2"]
[White "Bad4life"]
[Black "Kacparov"]
[Result "1/2-1/2"]
[WhiteElo "2306"]
[BlackElo "2576"]
[TimeControl "180+2"]
[EndTime "13:29:09 PST"]
[Termination "Game drawn by repetition"]

1. e4 {[%clk 0:03:02]} 1... c5 {[%clk 0:03:00.4]} 2. Nf3 {[%clk 0:03:02.5]} 2...
e6 {[%clk 0:03:00.5]} 3. b3 {[%clk 0:03:02.4]} 3... Nc6 {[%clk 0:03:00.6]} 4.
Bb2 {[%clk 0:03:01.1]} 4... d6 {[%clk 0:02:48]} 5. c4 {[%clk 0:02:49.4]} 5...
Nf6 {[%clk 0:02:49.1]} 6. e5 {[%clk 0:02:37.4]} 6... dxe5 {[%clk 0:02:49.6]} 7.
Nxe5 {[%clk 0:02:38.7]} 7... Nxe5 {[%clk 0:02:50.2]} 8. Bxe5 {[%clk 0:02:39.8]}
8... Bd6 {[%clk 0:02:51.2]} 9. Bb2 {[%clk 0:02:28.1]} 9... e5 {[%clk 0:02:50.8]}
10. Be2 {[%clk 0:02:27.9]} 10... O-O {[%clk 0:02:46.6]} 11. d3 {[%clk 0:02:23]}
11... Bf5 {[%clk 0:02:46.6]} 12. O-O {[%clk 0:02:23.7]} 12... Re8 {[%clk
0:02:47.5]} 13. Bf3 {[%clk 0:02:20.7]} 13... Qd7 {[%clk 0:02:48.3]} 14. Nc3
{[%clk 0:02:20]} 14... Rad8 {[%clk 0:02:48.4]} 15. Qe2 {[%clk 0:02:19.3]} 15...
Bf8 {[%clk 0:02:47.1]} 16. Ne4 {[%clk 0:01:56.5]} 16... Nxe4 {[%clk 0:02:38.1]}
17. dxe4 {[%clk 0:01:53.1]} 17... Bg6 {[%clk 0:02:30.5]} 18. Rad1 {[%clk
0:01:52.8]} 18... Qc7 {[%clk 0:02:27.2]} 19. Rd5 {[%clk 0:01:52.3]} 19... f6
{[%clk 0:02:27.4]} 20. Rfd1 {[%clk 0:01:40.6]} 20... Bf7 {[%clk 0:02:28.4]} 21.
Bh5 {[%clk 0:01:41.4]} 21... g6 {[%clk 0:02:28]} 22. Rxd8 {[%clk 0:01:35.8]}
22... Rxd8 {[%clk 0:02:23.9]} 23. Bg4 {[%clk 0:01:32.1]} 23... Bh6 {[%clk
0:02:24.5]} 24. g3 {[%clk 0:01:25.8]} 24... Kg7 {[%clk 0:02:22.4]} 25. Kg2
{[%clk 0:01:24.5]} 25... Qa5 {[%clk 0:02:06.7]} 26. h4 {[%clk 0:00:52]} 26...
Rxd1 {[%clk 0:02:04.9]} 27. Qxd1 {[%clk 0:00:53.1]} 27... Qxa2 {[%clk
0:01:55.2]} 28. Qd7 {[%clk 0:00:49.3]} 28... Qa6 {[%clk 0:01:52.1]} 29. h5
{[%clk 0:00:36.5]} 29... Kg8 {[%clk 0:01:36.5]} 30. Qd8+ {[%clk 0:00:26]} 30...
Bf8 {[%clk 0:01:35.3]} 31. Bc1 {[%clk 0:00:21.1]} 31... Qd6 {[%clk 0:01:34.9]}
32. Qc8 {[%clk 0:00:15.6]} 32... Qc6 {[%clk 0:01:11.7]} 33. Qxc6 {[%clk
0:00:16.5]} 33... bxc6 {[%clk 0:01:13.6]} 34. hxg6 {[%clk 0:00:18]} 34... Bxg6
{[%clk 0:01:14]} 35. f3 {[%clk 0:00:19.2]} 35... Be8 {[%clk 0:01:13.8]} 36. Be6+
{[%clk 0:00:19.8]} 36... Kg7 {[%clk 0:01:14.8]} 37. Bd2 {[%clk 0:00:21]} 37...
Bd6 {[%clk 0:01:13.4]} 38. Ba5 {[%clk 0:00:21.9]} 38... Kf8 {[%clk 0:01:07.8]}
39. Bd8 {[%clk 0:00:21.7]} 39... Be7 {[%clk 0:01:08.4]} 40. Bc7 {[%clk
0:00:21.9]} 40... Bf7 {[%clk 0:00:49.9]} 41. Bd7 {[%clk 0:00:22.1]} 41... Bg6
{[%clk 0:00:47.2]} 42. Bxc6 {[%clk 0:00:20.6]} 42... Kf7 {[%clk 0:00:47.6]} 43.
Bd5+ {[%clk 0:00:18.3]} 43... Ke8 {[%clk 0:00:48.5]} 44. Bc6+ {[%clk 0:00:19.1]}
44... Kf8 {[%clk 0:00:49.2]} 45. Bb8 {[%clk 0:00:20.6]} 45... a6 {[%clk
0:00:49.3]} 46. Bb7 {[%clk 0:00:19.3]} 46... a5 {[%clk 0:00:50.4]} 47. Bc7
{[%clk 0:00:20.5]} 47... f5 {[%clk 0:00:51.4]} 48. Bxa5 {[%clk 0:00:20.8]} 48...
fxe4 {[%clk 0:00:52.2]} 49. Bxe4 {[%clk 0:00:22.7]} 49... Be8 {[%clk 0:00:28.3]}
50. Bxh7 {[%clk 0:00:20.8]} 50... Bd6 {[%clk 0:00:20.7]} 51. Be4 {[%clk
0:00:17.6]} 51... Kg7 {[%clk 0:00:21.7]} 52. Kf2 {[%clk 0:00:18]} 52... Bd7
{[%clk 0:00:22.3]} 53. Ke3 {[%clk 0:00:18.8]} 53... Be6 {[%clk 0:00:23.4]} 54.
Bb6 {[%clk 0:00:19.8]} 54... Kf6 {[%clk 0:00:23.9]} 55. g4 {[%clk 0:00:20.4]}
55... Kg7 {[%clk 0:00:23.3]} 56. Bd8 {[%clk 0:00:21.6]} 56... Kf7 {[%clk
0:00:23.2]} 57. Bb6 {[%clk 0:00:21.5]} 57... Bd7 {[%clk 0:00:23.8]} 58. Bd5+
{[%clk 0:00:21.4]} 58... Kg7 {[%clk 0:00:25.1]} 59. Ke4 {[%clk 0:00:22.4]} 59...
Be8 {[%clk 0:00:25.1]} 60. Be6 {[%clk 0:00:21.8]} 60... Bc6+ {[%clk 0:00:25.2]}
61. Bd5 {[%clk 0:00:23.3]} 61... Be8 {[%clk 0:00:26.4]} 62. Ke3 {[%clk
0:00:24.7]} 62... Bg6 {[%clk 0:00:27]} 63. Bd8 {[%clk 0:00:25]} 63... Bc2 {[%clk
0:00:27.3]} 64. Bg5 {[%clk 0:00:18.2]} 64... Bxb3 {[%clk 0:00:27.8]} 65. f4
{[%clk 0:00:19.6]} 65... exf4+ {[%clk 0:00:28.4]} 66. Bxf4 {[%clk 0:00:21.5]}
66... Be7 {[%clk 0:00:28.8]} 67. Ke4 {[%clk 0:00:21.4]} 67... Bc2+ {[%clk
0:00:28.3]} 68. Ke5 {[%clk 0:00:19]} 68... Bf6+ {[%clk 0:00:28.6]} 69. Kd6
{[%clk 0:00:18.4]} 69... Bd1 {[%clk 0:00:28]} 70. Be6 {[%clk 0:00:18.6]} 70...
Bd4 {[%clk 0:00:28.1]} 71. Be5+ {[%clk 0:00:16.3]} 71... Kg6 {[%clk 0:00:29.3]}
72. Bf4 {[%clk 0:00:11.8]} 72... Be2 {[%clk 0:00:28.4]} 73. Bf5+ {[%clk
0:00:10.2]} 73... Kf6 {[%clk 0:00:29.1]} 74. Be6 {[%clk 0:00:09.8]} 74... Kg6
{[%clk 0:00:28.8]} 75. Kd5 {[%clk 0:00:09.8]} 75... Bf3+ {[%clk 0:00:29.2]} 76.
Kd6 {[%clk 0:00:11.3]} 76... Be2 {[%clk 0:00:30.5]} 1/2-1/2

[Event "***Titled Tuesday 3|2 Blitz"]
[Site "Chess.com"]
[Date "2017.02.07"]
[Round "2"]
[White "wonderfultime"]
[Black "GM_dmitrij"]
[Result "1/2-1/2"]
[WhiteElo "2646"]
[BlackElo "2472"]
[TimeControl "180+2"]
[EndTime "13:29:30 PST"]
[Termination "Game drawn - insufficient material"]

1. d4 {[%clk 0:03:01.9]} 1... Nf6 {[%clk 0:03:00.7]} 2. c4 {[%clk 0:03:01.6]}
2... g6 {[%clk 0:03:01.1]} 3. Nc3 {[%clk 0:03:00.8]} 3... Bg7 {[%clk 0:03:02]}
4. e4 {[%clk 0:03:00.9]} 4... d6 {[%clk 0:03:03.3]} 5. f3 {[%clk 0:03:02.4]}
5... O-O {[%clk 0:03:04.5]} 6. Be3 {[%clk 0:03:03.7]} 6... c5 {[%clk 0:03:05.6]}
7. Nge2 {[%clk 0:03:05]} 7... Nc6 {[%clk 0:03:06.2]} 8. d5 {[%clk 0:03:05.2]}
8... Ne5 {[%clk 0:03:07.5]} 9. Ng3 {[%clk 0:03:06.8]} 9... h5 {[%clk 0:03:08.7]}
10. Be2 {[%clk 0:03:06.1]} 10... h4 {[%clk 0:03:09.7]} 11. Nf1 {[%clk
0:03:07.4]} 11... e6 {[%clk 0:03:11.1]} 12. Nd2 {[%clk 0:03:08.6]} 12... exd5
{[%clk 0:03:11]} 13. cxd5 {[%clk 0:03:10.5]} 13... a6 {[%clk 0:03:11.6]} 14. a4
{[%clk 0:03:11.2]} 14... Bd7 {[%clk 0:03:12.9]} 15. a5 {[%clk 0:02:46.5]} 15...
Bb5 {[%clk 0:02:50.2]} 16. O-O {[%clk 0:02:42.8]} 16... c4 {[%clk 0:02:43.9]}
17. f4 {[%clk 0:02:29.4]} 17... Nd3 {[%clk 0:02:39.3]} 18. Bxd3 {[%clk
0:02:30.3]} 18... cxd3 {[%clk 0:02:39.7]} 19. Qf3 {[%clk 0:02:14.4]} 19... Bd7
{[%clk 0:02:25.8]} 20. Bb6 {[%clk 0:02:10.3]} 20... Qe7 {[%clk 0:02:14.1]} 21.
h3 {[%clk 0:02:05.4]} 21... Nh5 {[%clk 0:02:03.5]} 22. Qxd3 {[%clk 0:02:03.6]}
22... f5 {[%clk 0:02:03]} 23. Rae1 {[%clk 0:01:53.4]} 23... fxe4 {[%clk
0:02:02.1]} 24. Qxe4 {[%clk 0:01:41.3]} 24... Qf7 {[%clk 0:01:48]} 25. Qe7
{[%clk 0:01:10.3]} 25... Ng3 {[%clk 0:01:18.8]} 26. Qxf7+ {[%clk 0:01:00.1]}
26... Rxf7 {[%clk 0:01:19.9]} 27. Rf3 {[%clk 0:01:01.7]} 27... Raf8 {[%clk
0:01:12.7]} 28. Bc7 {[%clk 0:00:26.6]} 28... Nf5 {[%clk 0:00:36.7]} 29. Nde4
{[%clk 0:00:22.4]} 29... Re8 {[%clk 0:00:36.6]} 30. Ref1 {[%clk 0:00:19.6]}
30... Rc8 {[%clk 0:00:24.9]} 31. Bxd6 {[%clk 0:00:18]} 31... Bd4+ {[%clk
0:00:24.8]} 32. Kh2 {[%clk 0:00:18.3]} 32... Bxc3 {[%clk 0:00:21.3]} 33. Rxc3
{[%clk 0:00:19.5]} 33... Re8 {[%clk 0:00:22.4]} 34. Be5 {[%clk 0:00:20.2]} 34...
Ng3 {[%clk 0:00:20.3]} 35. Re1 {[%clk 0:00:15.1]} 35... Nxe4 {[%clk 0:00:14.6]}
36. Rxe4 {[%clk 0:00:17]} 36... Bf5 {[%clk 0:00:15.1]} 37. Ree3 {[%clk
0:00:17.3]} 37... Rd7 {[%clk 0:00:16.4]} 38. d6 {[%clk 0:00:18.2]} 38... Kf7
{[%clk 0:00:18]} 39. Rc7 {[%clk 0:00:17.8]} 39... Rd8 {[%clk 0:00:16.7]} 40. Rb3
{[%clk 0:00:18]} 40... Be4 {[%clk 0:00:16.6]} 41. g3 {[%clk 0:00:14.6]} 41...
hxg3+ {[%clk 0:00:17]} 42. Kxg3 {[%clk 0:00:16.5]} 42... Ke6 {[%clk 0:00:18.5]}
43. Rbc3 {[%clk 0:00:16.7]} 43... Bc6 {[%clk 0:00:19.4]} 44. b4 {[%clk
0:00:15.5]} 44... g5 {[%clk 0:00:20.2]} 45. Re3 {[%clk 0:00:15.7]} 45... gxf4+
{[%clk 0:00:21.3]} 46. Bxf4+ {[%clk 0:00:17.6]} 46... Kf6 {[%clk 0:00:21]} 47.
Rxd7 {[%clk 0:00:17.5]} 47... Rxd7 {[%clk 0:00:22.2]} 48. h4 {[%clk 0:00:19]}
48... Rg7+ {[%clk 0:00:23.1]} 49. Bg5+ {[%clk 0:00:19.9]} 49... Kf5 {[%clk
0:00:22.7]} 50. Re7 {[%clk 0:00:20.2]} 50... Rg6 {[%clk 0:00:22.1]} 51. d7
{[%clk 0:00:20.4]} 51... Rd6 {[%clk 0:00:23.2]} 52. Rf7+ {[%clk 0:00:18.2]}
52... Ke6 {[%clk 0:00:24.5]} 53. Re7+ {[%clk 0:00:16.7]} 53... Kf5 {[%clk
0:00:24.7]} 54. Rf7+ {[%clk 0:00:10.3]} 54... Ke6 {[%clk 0:00:25.8]} 55. d8=Q
{[%clk 0:00:08.9]} 55... Rxd8 {[%clk 0:00:26.8]} 56. Rf6+ {[%clk 0:00:10.4]}
56... Ke5 {[%clk 0:00:18.9]} 57. Rf4 {[%clk 0:00:05.3]} 57... Rd3+ {[%clk
0:00:19.9]} 58. Kg4 {[%clk 0:00:06.6]} 58... Bd7+ {[%clk 0:00:19.3]} 59. Kh5
{[%clk 0:00:07.8]} 59... Rd6 {[%clk 0:00:20.8]} 60. Rf1 {[%clk 0:00:06.4]} 60...
Be8+ {[%clk 0:00:21.9]} 61. Kg4 {[%clk 0:00:07.8]} 61... Bd7+ {[%clk 0:00:23.3]}
62. Kg3 {[%clk 0:00:08.7]} 62... Rd3+ {[%clk 0:00:24.3]} 63. Kf2 {[%clk
0:00:08.6]} 63... Bc6 {[%clk 0:00:24.6]} 64. Re1+ {[%clk 0:00:08.5]} 64... Kf5
{[%clk 0:00:26]} 65. Rf1 {[%clk 0:00:05.9]} 65... Rf3+ {[%clk 0:00:27]} 66. Ke2
{[%clk 0:00:07.4]} 66... Rxf1 {[%clk 0:00:28.3]} 67. Kxf1 {[%clk 0:00:09.3]}
67... Kg4 {[%clk 0:00:29.7]} 68. Kf2 {[%clk 0:00:10.5]} 68... Kh5 {[%clk
0:00:31.1]} 69. Ke3 {[%clk 0:00:12.4]} 69... Bd5 {[%clk 0:00:31.9]} 70. Kd4
{[%clk 0:00:14.3]} 70... Bh1 {[%clk 0:00:33]} 71. Bd8 {[%clk 0:00:15.1]} 71...
Bg2 {[%clk 0:00:34.3]} 72. Kc5 {[%clk 0:00:12.6]} 72... Bh1 {[%clk 0:00:35.5]}
73. Kb6 {[%clk 0:00:14]} 73... Bg2 {[%clk 0:00:36.6]} 74. Kc5 {[%clk 0:00:15.4]}
74... Bh1 {[%clk 0:00:37.1]} 75. Kb6 {[%clk 0:00:14.7]} 75... Bg2 {[%clk
0:00:38.2]} 76. Be7 {[%clk 0:00:16.1]} 76... Bh1 {[%clk 0:00:38.6]} 77. Bg5
{[%clk 0:00:18]} 77... Bg2 {[%clk 0:00:39.6]} 78. Bd8 {[%clk 0:00:19.4]} 78...
Bh1 {[%clk 0:00:41]} 79. Bg5 {[%clk 0:00:21.3]} 79... Bg2 {[%clk 0:00:42.2]} 80.
Kc7 {[%clk 0:00:22.3]} 80... Bh1 {[%clk 0:00:43.5]} 81. Kb6 {[%clk 0:00:24.2]}
81... Bg2 {[%clk 0:00:44.8]} 82. Kc5 {[%clk 0:00:25.7]} 82... Bh1 {[%clk
0:00:46.1]} 83. Kb6 {[%clk 0:00:27.6]} 83... Bg2 {[%clk 0:00:47.4]} 84. b5
{[%clk 0:00:29.5]} 84... axb5 {[%clk 0:00:47.3]} 85. Kxb5 {[%clk 0:00:31.4]}
85... Bh1 {[%clk 0:00:48.6]} 86. Kb6 {[%clk 0:00:33.3]} 86... Bg2 {[%clk
0:00:49.9]} 87. a6 {[%clk 0:00:35]} 87... bxa6 {[%clk 0:00:50.6]} 88. Kxa6
{[%clk 0:00:36.9]} 88... Bh1 {[%clk 0:00:51.9]} 89. Bc1 {[%clk 0:00:38.8]} 89...
Kxh4 {[%clk 0:00:52.2]} 90. Bg5+ {[%clk 0:00:39]} 90... Kxg5 {[%clk 0:00:53.2]}
1/2-1/2